{"text_format":"1","workbook":"xlsx","n_sheets":18,"sheets":["Main","التجاري الزاوية","التجاري المصفاة","الصحاري","Setting","الجمهورية الصيرفة","الجمهورية الميدان","الجمهورية الجامعة","شمال افريقيا","الجمهورية الحرشة","التجاري المطرد","الوحدة ابي عيسي","بيانات","كشف حساب بنوك","الوحدة الزاوية","التجارة والتنمية","رئيسية","المتحد للتجارة والاستثمار"],"not_rendered":{"charts":0,"images":1,"macros":1,"external_links":0,"defined_names":6,"comments":0,"pivot_tables":0},"unopened":[],"bounds":{"document_bytes":16777216,"sheet_cells":100000,"rows_first":2000,"rows_last":500,"rows_between":2000,"halvings":0,"cell_chars":16384,"cell_head_chars":4096},"cells_cut":0,"cells_raw":0,"read":"whole","date_system":"1900"}

{"sheet":"Main","index":0,"n_rows":1161,"n_cols":11,"rows_kept":1161,"cut":false,"hidden":false,"merged":[]}
["رقم الشيك","اسم البنك","رقم الحساب","رقم الشيك","اسم العميل","الصنف","الكمية","السعر","الاجمالي","التاريخ","ملاحظات"]
[null,null,null,null,null,null,null,null,{"$f":"IF(A2=\"\",\"\",G2*H2)","v":""},{"$f":"IF(A2<>\"\",TODAY(),\"\")","v":""}]
[null,null,null,null,null,null,null,null,{"$f":"IF(A3=\"\",\"\",G3*H3)","v":""},{"$f":"IF(A3<>\"\",TODAY(),\"\")","v":""}]
[null,null,null,null,null,null,null,null,"",""]
[null,null,null,null,null,null,null,null,"",""]
[null,null,null,null,null,null,null,null,"",""]
[null,null,null,null,null,null,null,null,"",""]
[null,null,null,null,null,null,null,null,"",""]
[null,null,null,null,null,null,null,null,"",""]
[null,null,null,null,null,null,null,null,"",""]
[null,null,null,null,null,null,null,null,"",""]
[null,null,null,null,null,null,null,null,"",""]
[null,null,null,null,null,null,null,null,"",""]
[null,null,null,null,null,null,null,null,"",""]
[null,null,null,null,null,null,null,null,"",""]
[null,null,null,null,null,null,null,null,"",""]
[null,null,null,null,null,null,null,null,"",""]
[null,null,null,null,null,null,null,null,"",""]
[null,null,null,null,null,null,null,null,"",""]
[null,null,null,null,null,null,null,null,"",""]
[null,null,null,null,null,null,null,null,"",""]
[null,null,null,null,null,null,null,null,"",""]
[null,null,null,null,null,null,null,null,"",""]
[null,null,null,null,null,null,null,null,"",""]
[null,null,null,null,null,null,null,null,"",""]
[null,null,null,null,null,null,null,null,"",""]
[null,null,null,null,null,null,null,null,"",""]
[null,null,null,null,null,null,null,null,"",""]
[null,null,null,null,null,null,null,null,"",""]
[null,null,null,null,null,null,null,null,"",""]
[null,null,null,null,null,null,null,null,"",""]
[null,null,null,null,null,null,null,null,"",""]
[null,null,null,null,null,null,null,null,"",""]
[null,null,null,null,null,null,null,null,"",""]
[null,null,null,null,null,null,null,null,"",""]
[null,null,null,null,null,null,null,null,"",""]
[null,null,null,null,null,null,null,null,"",""]
[null,null,null,null,null,null,null,null,"",""]
[null,null,null,null,null,null,null,null,"",""]
[null,null,null,null,null,null,null,null,"",""]
[null,null,null,null,null,null,null,null,"",""]
[null,null,null,null,null,null,null,null,"",""]
[null,null,null,null,null,null,null,null,"",""]
[null,null,null,null,null,null,null,null,"",""]
[null,null,null,null,null,null,null,null,"",""]
[null,null,null,null,null,null,null,null,"",""]
[null,null,null,null,null,null,null,null,"",""]
[null,null,null,null,null,null,null,null,"",""]
[null,null,null,null,null,null,null,null,"",""]
[null,null,null,null,null,null,null,null,"",""]
[null,null,null,null,null,null,null,null,"",""]
[null,null,null,null,null,null,null,null,"",""]
[null,null,null,null,null,null,null,null,"",""]
[null,null,null,null,null,null,null,null,"",""]
[null,null,null,null,null,null,null,null,"",""]
[null,null,null,null,null,null,null,null,"",""]
[null,null,null,null,null,null,null,null,"",""]
[null,null,null,null,null,null,null,null,"",""]
[null,null,null,null,null,null,null,null,"",""]
[null,null,null,null,null,null,null,null,"",""]
[null,null,null,null,null,null,null,null,"",""]
[null,null,null,null,null,null,null,null,"",""]
[null,null,null,null,null,null,null,null,"",""]
[null,null,null,null,null,null,null,null,"",""]
[null,null,null,null,null,null,null,null,"",""]
[null,null,null,null,null,null,null,null,"",""]
[null,null,null,null,null,null,null,null,{"$f":"IF(A67=\"\",\"\",G67*H67)","v":""},{"$f":"IF(A67<>\"\",TODAY(),\"\")","v":""}]
[null,null,null,null,null,null,null,null,"",""]
[null,null,null,null,null,null,null,null,"",""]
[null,null,null,null,null,null,null,null,"",""]
[null,null,null,null,null,null,null,null,"",""]
[null,null,null,null,null,null,null,null,"",""]
[null,null,null,null,null,null,null,null,"",""]
[null,null,null,null,null,null,null,null,"",""]
[null,null,null,null,null,null,null,null,"",""]
[null,null,null,null,null,null,null,null,"",""]
[null,null,null,null,null,null,null,null,"",""]
[null,null,null,null,null,null,null,null,"",""]
[null,null,null,null,null,null,null,null,"",""]
[null,null,null,null,null,null,null,null,"",""]
[null,null,null,null,null,null,null,null,"",""]
[null,null,null,null,null,null,null,null,"",""]
[null,null,null,null,null,null,null,null,"",""]
[null,null,null,null,null,null,null,null,"",""]
[null,null,null,null,null,null,null,null,"",""]
[null,null,null,null,null,null,null,null,"",""]
[null,null,null,null,null,null,null,null,"",""]
[null,null,null,null,null,null,null,null,"",""]
[null,null,null,null,null,null,null,null,"",""]
[null,null,null,null,null,null,null,null,"",""]
[null,null,null,null,null,null,null,null,"",""]
[null,null,null,null,null,null,null,null,"",""]
[null,null,null,null,null,null,null,null,"",""]
[null,null,null,null,null,null,null,null,"",""]
[null,null,null,null,null,null,null,null,"",""]
[null,null,null,null,null,null,null,null,"",""]
[null,null,null,null,null,null,null,null,"",""]
[null,null,null,null,null,null,null,null,"",""]
[null,null,null,null,null,null,null,null,"",""]
[null,null,null,null,null,null,null,null,"",""]
[null,null,null,null,null,null,null,null,"",""]
[null,null,null,null,null,null,null,null,"",""]
[null,null,null,null,null,null,null,null,"",""]
[null,null,null,null,null,null,null,null,"",""]
[null,null,null,null,null,null,null,null,"",""]
[null,null,null,null,null,null,null,null,"",""]
[null,null,null,null,null,null,null,null,"",""]
[null,null,null,null,null,null,null,null,"",""]
[null,null,null,null,null,null,null,null,"",""]
[null,null,null,null,null,null,null,null,"",""]
[null,null,null,null,null,null,null,null,"",""]
[null,null,null,null,null,null,null,null,"",""]
[null,null,null,null,null,null,null,null,"",""]
[null,null,null,null,null,null,null,null,"",""]
[null,null,null,null,null,null,null,null,"",""]
[null,null,null,null,null,null,null,null,"",""]
[null,null,null,null,null,null,null,null,"",""]
[null,null,null,null,null,null,null,null,"",""]
[null,null,null,null,null,null,null,null,"",""]
[null,null,null,null,null,null,null,null,"",""]
[null,null,null,null,null,null,null,null,"",""]
[null,null,null,null,null,null,null,null,"",""]
[null,null,null,null,null,null,null,null,"",""]
[null,null,null,null,null,null,null,null,"",""]
[null,null,null,null,null,null,null,null,"",""]
[null,null,null,null,null,null,null,null,"",""]
[null,null,null,null,null,null,null,null,"",""]
[null,null,null,null,null,null,null,null,"",""]
[null,null,null,null,null,null,null,null,"",""]
[null,null,null,null,null,null,null,null,"",""]
[null,null,null,null,null,null,null,null,{"$f":"IF(A131=\"\",\"\",G131*H131)","v":""},{"$f":"IF(A131<>\"\",TODAY(),\"\")","v":""}]
[null,null,null,null,null,null,null,null,"",""]
[null,null,null,null,null,null,null,null,"",""]
[null,null,null,null,null,null,null,null,"",""]
[null,null,null,null,null,null,null,null,"",""]
[null,null,null,null,null,null,null,null,"",""]
[null,null,null,null,null,null,null,null,"",""]
[null,null,null,null,null,null,null,null,"",""]
[null,null,null,null,null,null,null,null,"",""]
[null,null,null,null,null,null,null,null,"",""]
[null,null,null,null,null,null,null,null,"",""]
[null,null,null,null,null,null,null,null,"",""]
[null,null,null,null,null,null,null,null,"",""]
[null,null,null,null,null,null,null,null,"",""]
[null,null,null,null,null,null,null,null,"",""]
[null,null,null,null,null,null,null,null,"",""]
[null,null,null,null,null,null,null,null,"",""]
[null,null,null,null,null,null,null,null,"",""]
[null,null,null,null,null,null,null,null,"",""]
[null,null,null,null,null,null,null,null,"",""]
[null,null,null,null,null,null,null,null,"",""]
[null,null,null,null,null,null,null,null,"",""]
[null,null,null,null,null,null,null,null,"",""]
[null,null,null,null,null,null,null,null,"",""]
[null,null,null,null,null,null,null,null,"",""]
[null,null,null,null,null,null,null,null,"",""]
[null,null,null,null,null,null,null,null,"",""]
[null,null,null,null,null,null,null,null,"",""]
[null,null,null,null,null,null,null,null,"",""]
[null,null,null,null,null,null,null,null,"",""]
[null,null,null,null,null,null,null,null,"",""]
[null,null,null,null,null,null,null,null,"",""]
[null,null,null,null,null,null,null,null,"",""]
[null,null,null,null,null,null,null,null,"",""]
[null,null,null,null,null,null,null,null,"",""]
[null,null,null,null,null,null,null,null,"",""]
[null,null,null,null,null,null,null,null,"",""]
[null,null,null,null,null,null,null,null,"",""]
[null,null,null,null,null,null,null,null,"",""]
[null,null,null,null,null,null,null,null,"",""]
[null,null,null,null,null,null,null,null,"",""]
[null,null,null,null,null,null,null,null,"",""]
[null,null,null,null,null,null,null,null,"",""]
[null,null,null,null,null,null,null,null,"",""]
[null,null,null,null,null,null,null,null,"",""]
[null,null,null,null,null,null,null,null,"",""]
[null,null,null,null,null,null,null,null,"",""]
[null,null,null,null,null,null,null,null,"",""]
[null,null,null,null,null,null,null,null,"",""]
[null,null,null,null,null,null,null,null,"",""]
[null,null,null,null,null,null,null,null,"",""]
[null,null,null,null,null,null,null,null,"",""]
[null,null,null,null,null,null,null,null,"",""]
[null,null,null,null,null,null,null,null,"",""]
[null,null,null,null,null,null,null,null,"",""]
[null,null,null,null,null,null,null,null,"",""]
[null,null,null,null,null,null,null,null,"",""]
[null,null,null,null,null,null,null,null,"",""]
[null,null,null,null,null,null,null,null,"",""]
[null,null,null,null,null,null,null,null,"",""]
[null,null,null,null,null,null,null,null,"",""]
[null,null,null,null,null,null,null,null,"",""]
[null,null,null,null,null,null,null,null,"",""]
[null,null,null,null,null,null,null,null,"",""]
[null,null,null,null,null,null,null,null,{"$f":"IF(A195=\"\",\"\",G195*H195)","v":""},{"$f":"IF(A195<>\"\",TODAY(),\"\")","v":""}]
[null,null,null,null,null,null,null,null,"",""]
[null,null,null,null,null,null,null,null,"",""]
[null,null,null,null,null,null,null,null,"",""]
[null,null,null,null,null,null,null,null,"",""]
[null,null,null,null,null,null,null,null,"",""]
[null,null,null,null,null,null,null,null,"",""]
[null,null,null,null,null,null,null,null,"",""]
[null,null,null,null,null,null,null,null,"",""]
[null,null,null,null,null,null,null,null,"",""]
[null,null,null,null,null,null,null,null,"",""]
[null,null,null,null,null,null,null,null,"",""]
[null,null,null,null,null,null,null,null,"",""]
[null,null,null,null,null,null,null,null,"",""]
[null,null,null,null,null,null,null,null,"",""]
[null,null,null,null,null,null,null,null,"",""]
[null,null,null,null,null,null,null,null,"",""]
[null,null,null,null,null,null,null,null,"",""]
[null,null,null,null,null,null,null,null,"",""]
[null,null,null,null,null,null,null,null,"",""]
[null,null,null,null,null,null,null,null,"",""]
[null,null,null,null,null,null,null,null,"",""]
[null,null,null,null,null,null,null,null,"",""]
[null,null,null,null,null,null,null,null,"",""]
[null,null,null,null,null,null,null,null,"",""]
[null,null,null,null,null,null,null,null,"",""]
[null,null,null,null,null,null,null,null,"",""]
[null,null,null,null,null,null,null,null,"",""]
[null,null,null,null,null,null,null,null,"",""]
[null,null,null,null,null,null,null,null,"",""]
[null,null,null,null,null,null,null,null,"",""]
[null,null,null,null,null,null,null,null,"",""]
[null,null,null,null,null,null,null,null,"",""]
[null,null,null,null,null,null,null,null,"",""]
[null,null,null,null,null,null,null,null,"",""]
[null,null,null,null,null,null,null,null,"",""]
[null,null,null,null,null,null,null,null,"",""]
[null,null,null,null,null,null,null,null,"",""]
[null,null,null,null,null,null,null,null,"",""]
[null,null,null,null,null,null,null,null,"",""]
[null,null,null,null,null,null,null,null,"",""]
[null,null,null,null,null,null,null,null,"",""]
[null,null,null,null,null,null,null,null,"",""]
[null,null,null,null,null,null,null,null,"",""]
[null,null,null,null,null,null,null,null,"",""]
[null,null,null,null,null,null,null,null,"",""]
[null,null,null,null,null,null,null,null,"",""]
[null,null,null,null,null,null,null,null,"",""]
[null,null,null,null,null,null,null,null,"",""]
[null,null,null,null,null,null,null,null,"",""]
[null,null,null,null,null,null,null,null,"",""]
[null,null,null,null,null,null,null,null,"",""]
[null,null,null,null,null,null,null,null,"",""]
[null,null,null,null,null,null,null,null,"",""]
[null,null,null,null,null,null,null,null,"",""]
[null,null,null,null,null,null,null,null,"",""]
[null,null,null,null,null,null,null,null,"",""]
[null,null,null,null,null,null,null,null,"",""]
[null,null,null,null,null,null,null,null,"",""]
[null,null,null,null,null,null,null,null,"",""]
[null,null,null,null,null,null,null,null,"",""]
[null,null,null,null,null,null,null,null,"",""]
[null,null,null,null,null,null,null,null,"",""]
[null,null,null,null,null,null,null,null,"",""]
[null,null,null,null,null,null,null,null,{"$f":"IF(A259=\"\",\"\",G259*H259)","v":""},{"$f":"IF(A259<>\"\",TODAY(),\"\")","v":""}]
[null,null,null,null,null,null,null,null,"",""]
[null,null,null,null,null,null,null,null,"",""]
[null,null,null,null,null,null,null,null,"",""]
[null,null,null,null,null,null,null,null,"",""]
[null,null,null,null,null,null,null,null,"",""]
[null,null,null,null,null,null,null,null,"",""]
[null,null,null,null,null,null,null,null,"",""]
[null,null,null,null,null,null,null,null,"",""]
[null,null,null,null,null,null,null,null,"",""]
[null,null,null,null,null,null,null,null,"",""]
[null,null,null,null,null,null,null,null,"",""]
[null,null,null,null,null,null,null,null,"",""]
[null,null,null,null,null,null,null,null,"",""]
[null,null,null,null,null,null,null,null,"",""]
[null,null,null,null,null,null,null,null,"",""]
[null,null,null,null,null,null,null,null,"",""]
[null,null,null,null,null,null,null,null,"",""]
[null,null,null,null,null,null,null,null,"",""]
[null,null,null,null,null,null,null,null,"",""]
[null,null,null,null,null,null,null,null,"",""]
[null,null,null,null,null,null,null,null,"",""]
[null,null,null,null,null,null,null,null,"",""]
[null,null,null,null,null,null,null,null,"",""]
[null,null,null,null,null,null,null,null,"",""]
[null,null,null,null,null,null,null,null,"",""]
[null,null,null,null,null,null,null,null,"",""]
[null,null,null,null,null,null,null,null,"",""]
[null,null,null,null,null,null,null,null,"",""]
[null,null,null,null,null,null,null,null,"",""]
[null,null,null,null,null,null,null,null,"",""]
[null,null,null,null,null,null,null,null,"",""]
[null,null,null,null,null,null,null,null,"",""]
[null,null,null,null,null,null,null,null,"",""]
[null,null,null,null,null,null,null,null,"",""]
[null,null,null,null,null,null,null,null,"",""]
[null,null,null,null,null,null,null,null,"",""]
[null,null,null,null,null,null,null,null,"",""]
[null,null,null,null,null,null,null,null,"",""]
[null,null,null,null,null,null,null,null,"",""]
[null,null,null,null,null,null,null,null,"",""]
[null,null,null,null,null,null,null,null,"",""]
[null,null,null,null,null,null,null,null,"",""]
[null,null,null,null,null,null,null,null,"",""]
[null,null,null,null,null,null,null,null,"",""]
[null,null,null,null,null,null,null,null,"",""]
[null,null,null,null,null,null,null,null,"",""]
[null,null,null,null,null,null,null,null,"",""]
[null,null,null,null,null,null,null,null,"",""]
[null,null,null,null,null,null,null,null,"",""]
[null,null,null,null,null,null,null,null,"",""]
[null,null,null,null,null,null,null,null,"",""]
[null,null,null,null,null,null,null,null,"",""]
[null,null,null,null,null,null,null,null,"",""]
[null,null,null,null,null,null,null,null,"",""]
[null,null,null,null,null,null,null,null,"",""]
[null,null,null,null,null,null,null,null,"",""]
[null,null,null,null,null,null,null,null,"",""]
[null,null,null,null,null,null,null,null,"",""]
[null,null,null,null,null,null,null,null,"",""]
[null,null,null,null,null,null,null,null,"",""]
[null,null,null,null,null,null,null,null,"",""]
[null,null,null,null,null,null,null,null,"",""]
[null,null,null,null,null,null,null,null,"",""]
[null,null,null,null,null,null,null,null,{"$f":"IF(A323=\"\",\"\",G323*H323)","v":""},{"$f":"IF(A323<>\"\",TODAY(),\"\")","v":""}]
[null,null,null,null,null,null,null,null,"",""]
[null,null,null,null,null,null,null,null,"",""]
[null,null,null,null,null,null,null,null,"",""]
[null,null,null,null,null,null,null,null,"",""]
[null,null,null,null,null,null,null,null,"",""]
[null,null,null,null,null,null,null,null,"",""]
[null,null,null,null,null,null,null,null,"",""]
[null,null,null,null,null,null,null,null,"",""]
[null,null,null,null,null,null,null,null,"",""]
[null,null,null,null,null,null,null,null,"",""]
[null,null,null,null,null,null,null,null,"",""]
[null,null,null,null,null,null,null,null,"",""]
[null,null,null,null,null,null,null,null,"",""]
[null,null,null,null,null,null,null,null,"",""]
[null,null,null,null,null,null,null,null,"",""]
[null,null,null,null,null,null,null,null,"",""]
[null,null,null,null,null,null,null,null,"",""]
[null,null,null,null,null,null,null,null,"",""]
[null,null,null,null,null,null,null,null,"",""]
[null,null,null,null,null,null,null,null,"",""]
[null,null,null,null,null,null,null,null,"",""]
[null,null,null,null,null,null,null,null,"",""]
[null,null,null,null,null,null,null,null,"",""]
[null,null,null,null,null,null,null,null,"",""]
[null,null,null,null,null,null,null,null,"",""]
[null,null,null,null,null,null,null,null,"",""]
[null,null,null,null,null,null,null,null,"",""]
[null,null,null,null,null,null,null,null,"",""]
[null,null,null,null,null,null,null,null,"",""]
[null,null,null,null,null,null,null,null,"",""]
[null,null,null,null,null,null,null,null,"",""]
[null,null,null,null,null,null,null,null,"",""]
[null,null,null,null,null,null,null,null,"",""]
[null,null,null,null,null,null,null,null,"",""]
[null,null,null,null,null,null,null,null,"",""]
[null,null,null,null,null,null,null,null,"",""]
[null,null,null,null,null,null,null,null,"",""]
[null,null,null,null,null,null,null,null,"",""]
[null,null,null,null,null,null,null,null,"",""]
[null,null,null,null,null,null,null,null,"",""]
[null,null,null,null,null,null,null,null,"",""]
[null,null,null,null,null,null,null,null,"",""]
[null,null,null,null,null,null,null,null,"",""]
[null,null,null,null,null,null,null,null,"",""]
[null,null,null,null,null,null,null,null,"",""]
[null,null,null,null,null,null,null,null,"",""]
[null,null,null,null,null,null,null,null,"",""]
[null,null,null,null,null,null,null,null,"",""]
[null,null,null,null,null,null,null,null,"",""]
[null,null,null,null,null,null,null,null,"",""]
[null,null,null,null,null,null,null,null,"",""]
[null,null,null,null,null,null,null,null,"",""]
[null,null,null,null,null,null,null,null,"",""]
[null,null,null,null,null,null,null,null,"",""]
[null,null,null,null,null,null,null,null,"",""]
[null,null,null,null,null,null,null,null,"",""]
[null,null,null,null,null,null,null,null,"",""]
[null,null,null,null,null,null,null,null,"",""]
[null,null,null,null,null,null,null,null,"",""]
[null,null,null,null,null,null,null,null,"",""]
[null,null,null,null,null,null,null,null,"",""]
[null,null,null,null,null,null,null,null,"",""]
[null,null,null,null,null,null,null,null,"",""]
[null,null,null,null,null,null,null,null,{"$f":"IF(A387=\"\",\"\",G387*H387)","v":""},{"$f":"IF(A387<>\"\",TODAY(),\"\")","v":""}]
[null,null,null,null,null,null,null,null,"",""]
[null,null,null,null,null,null,null,null,"",""]
[null,null,null,null,null,null,null,null,"",""]
[null,null,null,null,null,null,null,null,"",""]
[null,null,null,null,null,null,null,null,"",""]
[null,null,null,null,null,null,null,null,"",""]
[null,null,null,null,null,null,null,null,"",""]
[null,null,null,null,null,null,null,null,"",""]
[null,null,null,null,null,null,null,null,"",""]
[null,null,null,null,null,null,null,null,"",""]
[null,null,null,null,null,null,null,null,"",""]
[null,null,null,null,null,null,null,null,"",""]
[null,null,null,null,null,null,null,null,"",""]
[null,null,null,null,null,null,null,null,"",""]
[null,null,null,null,null,null,null,null,"",""]
[null,null,null,null,null,null,null,null,"",""]
[null,null,null,null,null,null,null,null,"",""]
[null,null,null,null,null,null,null,null,"",""]
[null,null,null,null,null,null,null,null,"",""]
[null,null,null,null,null,null,null,null,"",""]
[null,null,null,null,null,null,null,null,"",""]
[null,null,null,null,null,null,null,null,"",""]
[null,null,null,null,null,null,null,null,"",""]
[null,null,null,null,null,null,null,null,"",""]
[null,null,null,null,null,null,null,null,"",""]
[null,null,null,null,null,null,null,null,"",""]
[null,null,null,null,null,null,null,null,"",""]
[null,null,null,null,null,null,null,null,"",""]
[null,null,null,null,null,null,null,null,"",""]
[null,null,null,null,null,null,null,null,"",""]
[null,null,null,null,null,null,null,null,"",""]
[null,null,null,null,null,null,null,null,"",""]
[null,null,null,null,null,null,null,null,"",""]
[null,null,null,null,null,null,null,null,"",""]
[null,null,null,null,null,null,null,null,"",""]
[null,null,null,null,null,null,null,null,"",""]
[null,null,null,null,null,null,null,null,"",""]
[null,null,null,null,null,null,null,null,"",""]
[null,null,null,null,null,null,null,null,"",""]
[null,null,null,null,null,null,null,null,"",""]
[null,null,null,null,null,null,null,null,"",""]
[null,null,null,null,null,null,null,null,"",""]
[null,null,null,null,null,null,null,null,"",""]
[null,null,null,null,null,null,null,null,"",""]
[null,null,null,null,null,null,null,null,"",""]
[null,null,null,null,null,null,null,null,"",""]
[null,null,null,null,null,null,null,null,"",""]
[null,null,null,null,null,null,null,null,"",""]
[null,null,null,null,null,null,null,null,"",""]
[null,null,null,null,null,null,null,null,"",""]
[null,null,null,null,null,null,null,null,"",""]
[null,null,null,null,null,null,null,null,"",""]
[null,null,null,null,null,null,null,null,"",""]
[null,null,null,null,null,null,null,null,"",""]
[null,null,null,null,null,null,null,null,"",""]
[null,null,null,null,null,null,null,null,"",""]
[null,null,null,null,null,null,null,null,"",""]
[null,null,null,null,null,null,null,null,"",""]
[null,null,null,null,null,null,null,null,"",""]
[null,null,null,null,null,null,null,null,"",""]
[null,null,null,null,null,null,null,null,"",""]
[null,null,null,null,null,null,null,null,"",""]
[null,null,null,null,null,null,null,null,"",""]
[null,null,null,null,null,null,null,null,{"$f":"IF(A451=\"\",\"\",G451*H451)","v":""},{"$f":"IF(A451<>\"\",TODAY(),\"\")","v":""}]
[null,null,null,null,null,null,null,null,"",""]
[null,null,null,null,null,null,null,null,"",""]
[null,null,null,null,null,null,null,null,"",""]
[null,null,null,null,null,null,null,null,"",""]
[null,null,null,null,null,null,null,null,"",""]
[null,null,null,null,null,null,null,null,"",""]
[null,null,null,null,null,null,null,null,"",""]
[null,null,null,null,null,null,null,null,"",""]
[null,null,null,null,null,null,null,null,"",""]
[null,null,null,null,null,null,null,null,"",""]
[null,null,null,null,null,null,null,null,"",""]
[null,null,null,null,null,null,null,null,"",""]
[null,null,null,null,null,null,null,null,"",""]
[null,null,null,null,null,null,null,null,"",""]
[null,null,null,null,null,null,null,null,"",""]
[null,null,null,null,null,null,null,null,"",""]
[null,null,null,null,null,null,null,null,"",""]
[null,null,null,null,null,null,null,null,"",""]
[null,null,null,null,null,null,null,null,"",""]
[null,null,null,null,null,null,null,null,"",""]
[null,null,null,null,null,null,null,null,"",""]
[null,null,null,null,null,null,null,null,"",""]
[null,null,null,null,null,null,null,null,"",""]
[null,null,null,null,null,null,null,null,"",""]
[null,null,null,null,null,null,null,null,"",""]
[null,null,null,null,null,null,null,null,"",""]
[null,null,null,null,null,null,null,null,"",""]
[null,null,null,null,null,null,null,null,"",""]
[null,null,null,null,null,null,null,null,"",""]
[null,null,null,null,null,null,null,null,"",""]
[null,null,null,null,null,null,null,null,"",""]
[null,null,null,null,null,null,null,null,"",""]
[null,null,null,null,null,null,null,null,"",""]
[null,null,null,null,null,null,null,null,"",""]
[null,null,null,null,null,null,null,null,"",""]
[null,null,null,null,null,null,null,null,"",""]
[null,null,null,null,null,null,null,null,"",""]
[null,null,null,null,null,null,null,null,"",""]
[null,null,null,null,null,null,null,null,"",""]
[null,null,null,null,null,null,null,null,"",""]
[null,null,null,null,null,null,null,null,"",""]
[null,null,null,null,null,null,null,null,"",""]
[null,null,null,null,null,null,null,null,"",""]
[null,null,null,null,null,null,null,null,"",""]
[null,null,null,null,null,null,null,null,"",""]
[null,null,null,null,null,null,null,null,"",""]
[null,null,null,null,null,null,null,null,"",""]
[null,null,null,null,null,null,null,null,"",""]
[null,null,null,null,null,null,null,null,"",""]
[null,null,null,null,null,null,null,null,"",""]
[null,null,null,null,null,null,null,null,"",""]
[null,null,null,null,null,null,null,null,"",""]
[null,null,null,null,null,null,null,null,"",""]
[null,null,null,null,null,null,null,null,"",""]
[null,null,null,null,null,null,null,null,"",""]
[null,null,null,null,null,null,null,null,"",""]
[null,null,null,null,null,null,null,null,"",""]
[null,null,null,null,null,null,null,null,"",""]
[null,null,null,null,null,null,null,null,"",""]
[null,null,null,null,null,null,null,null,"",""]
[null,null,null,null,null,null,null,null,"",""]
[null,null,null,null,null,null,null,null,"",""]
[null,null,null,null,null,null,null,null,"",""]
[null,null,null,null,null,null,null,null,{"$f":"IF(A515=\"\",\"\",G515*H515)","v":""},{"$f":"IF(A515<>\"\",TODAY(),\"\")","v":""}]
[null,null,null,null,null,null,null,null,"",""]
[null,null,null,null,null,null,null,null,"",""]
[null,null,null,null,null,null,null,null,"",""]
[null,null,null,null,null,null,null,null,"",""]
[null,null,null,null,null,null,null,null,"",""]
[null,null,null,null,null,null,null,null,"",""]
[null,null,null,null,null,null,null,null,"",""]
[null,null,null,null,null,null,null,null,"",""]
[null,null,null,null,null,null,null,null,"",""]
[null,null,null,null,null,null,null,null,"",""]
[null,null,null,null,null,null,null,null,"",""]
[null,null,null,null,null,null,null,null,"",""]
[null,null,null,null,null,null,null,null,"",""]
[null,null,null,null,null,null,null,null,"",""]
[null,null,null,null,null,null,null,null,"",""]
[null,null,null,null,null,null,null,null,"",""]
[null,null,null,null,null,null,null,null,"",""]
[null,null,null,null,null,null,null,null,"",""]
[null,null,null,null,null,null,null,null,"",""]
[null,null,null,null,null,null,null,null,"",""]
[null,null,null,null,null,null,null,null,"",""]
[null,null,null,null,null,null,null,null,"",""]
[null,null,null,null,null,null,null,null,"",""]
[null,null,null,null,null,null,null,null,"",""]
[null,null,null,null,null,null,null,null,"",""]
[null,null,null,null,null,null,null,null,"",""]
[null,null,null,null,null,null,null,null,"",""]
[null,null,null,null,null,null,null,null,"",""]
[null,null,null,null,null,null,null,null,"",""]
[null,null,null,null,null,null,null,null,"",""]
[null,null,null,null,null,null,null,null,"",""]
[null,null,null,null,null,null,null,null,"",""]
[null,null,null,null,null,null,null,null,"",""]
[null,null,null,null,null,null,null,null,"",""]
[null,null,null,null,null,null,null,null,"",""]
[null,null,null,null,null,null,null,null,"",""]
[null,null,null,null,null,null,null,null,"",""]
[null,null,null,null,null,null,null,null,"",""]
[null,null,null,null,null,null,null,null,"",""]
[null,null,null,null,null,null,null,null,"",""]
[null,null,null,null,null,null,null,null,"",""]
[null,null,null,null,null,null,null,null,"",""]
[null,null,null,null,null,null,null,null,"",""]
[null,null,null,null,null,null,null,null,"",""]
[null,null,null,null,null,null,null,null,"",""]
[null,null,null,null,null,null,null,null,"",""]
[null,null,null,null,null,null,null,null,"",""]
[null,null,null,null,null,null,null,null,"",""]
[null,null,null,null,null,null,null,null,"",""]
[null,null,null,null,null,null,null,null,"",""]
[null,null,null,null,null,null,null,null,"",""]
[null,null,null,null,null,null,null,null,"",""]
[null,null,null,null,null,null,null,null,"",""]
[null,null,null,null,null,null,null,null,"",""]
[null,null,null,null,null,null,null,null,"",""]
[null,null,null,null,null,null,null,null,"",""]
[null,null,null,null,null,null,null,null,"",""]
[null,null,null,null,null,null,null,null,"",""]
[null,null,null,null,null,null,null,null,"",""]
[null,null,null,null,null,null,null,null,"",""]
[null,null,null,null,null,null,null,null,"",""]
[null,null,null,null,null,null,null,null,"",""]
[null,null,null,null,null,null,null,null,"",""]
[null,null,null,null,null,null,null,null,{"$f":"IF(A579=\"\",\"\",G579*H579)","v":""},{"$f":"IF(A579<>\"\",TODAY(),\"\")","v":""}]
[null,null,null,null,null,null,null,null,"",""]
[null,null,null,null,null,null,null,null,"",""]
[null,null,null,null,null,null,null,null,"",""]
[null,null,null,null,null,null,null,null,"",""]
[null,null,null,null,null,null,null,null,"",""]
[null,null,null,null,null,null,null,null,"",""]
[null,null,null,null,null,null,null,null,"",""]
[null,null,null,null,null,null,null,null,"",""]
[null,null,null,null,null,null,null,null,"",""]
[null,null,null,null,null,null,null,null,"",""]
[null,null,null,null,null,null,null,null,"",""]
[null,null,null,null,null,null,null,null,"",""]
[null,null,null,null,null,null,null,null,"",""]
[null,null,null,null,null,null,null,null,"",""]
[null,null,null,null,null,null,null,null,"",""]
[null,null,null,null,null,null,null,null,"",""]
[null,null,null,null,null,null,null,null,"",""]
[null,null,null,null,null,null,null,null,"",""]
[null,null,null,null,null,null,null,null,"",""]
[null,null,null,null,null,null,null,null,"",""]
[null,null,null,null,null,null,null,null,"",""]
[null,null,null,null,null,null,null,null,"",""]
[null,null,null,null,null,null,null,null,"",""]
[null,null,null,null,null,null,null,null,"",""]
[null,null,null,null,null,null,null,null,"",""]
[null,null,null,null,null,null,null,null,"",""]
[null,null,null,null,null,null,null,null,"",""]
[null,null,null,null,null,null,null,null,"",""]
[null,null,null,null,null,null,null,null,"",""]
[null,null,null,null,null,null,null,null,"",""]
[null,null,null,null,null,null,null,null,"",""]
[null,null,null,null,null,null,null,null,"",""]
[null,null,null,null,null,null,null,null,"",""]
[null,null,null,null,null,null,null,null,"",""]
[null,null,null,null,null,null,null,null,"",""]
[null,null,null,null,null,null,null,null,"",""]
[null,null,null,null,null,null,null,null,"",""]
[null,null,null,null,null,null,null,null,"",""]
[null,null,null,null,null,null,null,null,"",""]
[null,null,null,null,null,null,null,null,"",""]
[null,null,null,null,null,null,null,null,"",""]
[null,null,null,null,null,null,null,null,"",""]
[null,null,null,null,null,null,null,null,"",""]
[null,null,null,null,null,null,null,null,"",""]
[null,null,null,null,null,null,null,null,"",""]
[null,null,null,null,null,null,null,null,"",""]
[null,null,null,null,null,null,null,null,"",""]
[null,null,null,null,null,null,null,null,"",""]
[null,null,null,null,null,null,null,null,"",""]
[null,null,null,null,null,null,null,null,"",""]
[null,null,null,null,null,null,null,null,"",""]
[null,null,null,null,null,null,null,null,"",""]
[null,null,null,null,null,null,null,null,"",""]
[null,null,null,null,null,null,null,null,"",""]
[null,null,null,null,null,null,null,null,"",""]
[null,null,null,null,null,null,null,null,"",""]
[null,null,null,null,null,null,null,null,"",""]
[null,null,null,null,null,null,null,null,"",""]
[null,null,null,null,null,null,null,null,"",""]
[null,null,null,null,null,null,null,null,"",""]
[null,null,null,null,null,null,null,null,"",""]
[null,null,null,null,null,null,null,null,"",""]
[null,null,null,null,null,null,null,null,"",""]
[null,null,null,null,null,null,null,null,{"$f":"IF(A643=\"\",\"\",G643*H643)","v":""},{"$f":"IF(A643<>\"\",TODAY(),\"\")","v":""}]
[null,null,null,null,null,null,null,null,"",""]
[null,null,null,null,null,null,null,null,"",""]
[null,null,null,null,null,null,null,null,"",""]
[null,null,null,null,null,null,null,null,"",""]
[null,null,null,null,null,null,null,null,"",""]
[null,null,null,null,null,null,null,null,"",""]
[null,null,null,null,null,null,null,null,"",""]
[null,null,null,null,null,null,null,null,"",""]
[null,null,null,null,null,null,null,null,"",""]
[null,null,null,null,null,null,null,null,"",""]
[null,null,null,null,null,null,null,null,"",""]
[null,null,null,null,null,null,null,null,"",""]
[null,null,null,null,null,null,null,null,"",""]
[null,null,null,null,null,null,null,null,"",""]
[null,null,null,null,null,null,null,null,"",""]
[null,null,null,null,null,null,null,null,"",""]
[null,null,null,null,null,null,null,null,"",""]
[null,null,null,null,null,null,null,null,"",""]
[null,null,null,null,null,null,null,null,"",""]
[null,null,null,null,null,null,null,null,"",""]
[null,null,null,null,null,null,null,null,"",""]
[null,null,null,null,null,null,null,null,"",""]
[null,null,null,null,null,null,null,null,"",""]
[null,null,null,null,null,null,null,null,"",""]
[null,null,null,null,null,null,null,null,"",""]
[null,null,null,null,null,null,null,null,"",""]
[null,null,null,null,null,null,null,null,"",""]
[null,null,null,null,null,null,null,null,"",""]
[null,null,null,null,null,null,null,null,"",""]
[null,null,null,null,null,null,null,null,"",""]
[null,null,null,null,null,null,null,null,"",""]
[null,null,null,null,null,null,null,null,"",""]
[null,null,null,null,null,null,null,null,"",""]
[null,null,null,null,null,null,null,null,"",""]
[null,null,null,null,null,null,null,null,"",""]
[null,null,null,null,null,null,null,null,"",""]
[null,null,null,null,null,null,null,null,"",""]
[null,null,null,null,null,null,null,null,"",""]
[null,null,null,null,null,null,null,null,"",""]
[null,null,null,null,null,null,null,null,"",""]
[null,null,null,null,null,null,null,null,"",""]
[null,null,null,null,null,null,null,null,"",""]
[null,null,null,null,null,null,null,null,"",""]
[null,null,null,null,null,null,null,null,"",""]
[null,null,null,null,null,null,null,null,"",""]
[null,null,null,null,null,null,null,null,"",""]
[null,null,null,null,null,null,null,null,"",""]
[null,null,null,null,null,null,null,null,"",""]
[null,null,null,null,null,null,null,null,"",""]
[null,null,null,null,null,null,null,null,"",""]
[null,null,null,null,null,null,null,null,"",""]
[null,null,null,null,null,null,null,null,"",""]
[null,null,null,null,null,null,null,null,"",""]
[null,null,null,null,null,null,null,null,"",""]
[null,null,null,null,null,null,null,null,"",""]
[null,null,null,null,null,null,null,null,"",""]
[null,null,null,null,null,null,null,null,"",""]
[null,null,null,null,null,null,null,null,"",""]
[null,null,null,null,null,null,null,null,"",""]
[null,null,null,null,null,null,null,null,"",""]
[null,null,null,null,null,null,null,null,"",""]
[null,null,null,null,null,null,null,null,"",""]
[null,null,null,null,null,null,null,null,"",""]
[null,null,null,null,null,null,null,null,{"$f":"IF(A707=\"\",\"\",G707*H707)","v":""},{"$f":"IF(A707<>\"\",TODAY(),\"\")","v":""}]
[null,null,null,null,null,null,null,null,"",""]
[null,null,null,null,null,null,null,null,"",""]
[null,null,null,null,null,null,null,null,"",""]
[null,null,null,null,null,null,null,null,"",""]
[null,null,null,null,null,null,null,null,"",""]
[null,null,null,null,null,null,null,null,"",""]
[null,null,null,null,null,null,null,null,"",""]
[null,null,null,null,null,null,null,null,"",""]
[null,null,null,null,null,null,null,null,"",""]
[null,null,null,null,null,null,null,null,"",""]
[null,null,null,null,null,null,null,null,"",""]
[null,null,null,null,null,null,null,null,"",""]
[null,null,null,null,null,null,null,null,"",""]
[null,null,null,null,null,null,null,null,"",""]
[null,null,null,null,null,null,null,null,"",""]
[null,null,null,null,null,null,null,null,"",""]
[null,null,null,null,null,null,null,null,"",""]
[null,null,null,null,null,null,null,null,"",""]
[null,null,null,null,null,null,null,null,"",""]
[null,null,null,null,null,null,null,null,"",""]
[null,null,null,null,null,null,null,null,"",""]
[null,null,null,null,null,null,null,null,"",""]
[null,null,null,null,null,null,null,null,"",""]
[null,null,null,null,null,null,null,null,"",""]
[null,null,null,null,null,null,null,null,"",""]
[null,null,null,null,null,null,null,null,"",""]
[null,null,null,null,null,null,null,null,"",""]
[null,null,null,null,null,null,null,null,"",""]
[null,null,null,null,null,null,null,null,"",""]
[null,null,null,null,null,null,null,null,"",""]
[null,null,null,null,null,null,null,null,"",""]
[null,null,null,null,null,null,null,null,"",""]
[null,null,null,null,null,null,null,null,"",""]
[null,null,null,null,null,null,null,null,"",""]
[null,null,null,null,null,null,null,null,"",""]
[null,null,null,null,null,null,null,null,"",""]
[null,null,null,null,null,null,null,null,"",""]
[null,null,null,null,null,null,null,null,"",""]
[null,null,null,null,null,null,null,null,"",""]
[null,null,null,null,null,null,null,null,"",""]
[null,null,null,null,null,null,null,null,"",""]
[null,null,null,null,null,null,null,null,"",""]
[null,null,null,null,null,null,null,null,"",""]
[null,null,null,null,null,null,null,null,"",""]
[null,null,null,null,null,null,null,null,"",""]
[null,null,null,null,null,null,null,null,"",""]
[null,null,null,null,null,null,null,null,"",""]
[null,null,null,null,null,null,null,null,"",""]
[null,null,null,null,null,null,null,null,"",""]
[null,null,null,null,null,null,null,null,"",""]
[null,null,null,null,null,null,null,null,"",""]
[null,null,null,null,null,null,null,null,"",""]
[null,null,null,null,null,null,null,null,"",""]
[null,null,null,null,null,null,null,null,"",""]
[null,null,null,null,null,null,null,null,"",""]
[null,null,null,null,null,null,null,null,"",""]
[null,null,null,null,null,null,null,null,"",""]
[null,null,null,null,null,null,null,null,"",""]
[null,null,null,null,null,null,null,null,"",""]
[null,null,null,null,null,null,null,null,"",""]
[null,null,null,null,null,null,null,null,"",""]
[null,null,null,null,null,null,null,null,"",""]
[null,null,null,null,null,null,null,null,"",""]
[null,null,null,null,null,null,null,null,{"$f":"IF(A771=\"\",\"\",G771*H771)","v":""},{"$f":"IF(A771<>\"\",TODAY(),\"\")","v":""}]
[null,null,null,null,null,null,null,null,"",""]
[null,null,null,null,null,null,null,null,"",""]
[null,null,null,null,null,null,null,null,"",""]
[null,null,null,null,null,null,null,null,"",""]
[null,null,null,null,null,null,null,null,"",""]
[null,null,null,null,null,null,null,null,"",""]
[null,null,null,null,null,null,null,null,"",""]
[null,null,null,null,null,null,null,null,"",""]
[null,null,null,null,null,null,null,null,"",""]
[null,null,null,null,null,null,null,null,"",""]
[null,null,null,null,null,null,null,null,"",""]
[null,null,null,null,null,null,null,null,"",""]
[null,null,null,null,null,null,null,null,"",""]
[null,null,null,null,null,null,null,null,"",""]
[null,null,null,null,null,null,null,null,"",""]
[null,null,null,null,null,null,null,null,"",""]
[null,null,null,null,null,null,null,null,"",""]
[null,null,null,null,null,null,null,null,"",""]
[null,null,null,null,null,null,null,null,"",""]
[null,null,null,null,null,null,null,null,"",""]
[null,null,null,null,null,null,null,null,"",""]
[null,null,null,null,null,null,null,null,"",""]
[null,null,null,null,null,null,null,null,"",""]
[null,null,null,null,null,null,null,null,"",""]
[null,null,null,null,null,null,null,null,"",""]
[null,null,null,null,null,null,null,null,"",""]
[null,null,null,null,null,null,null,null,"",""]
[null,null,null,null,null,null,null,null,"",""]
[null,null,null,null,null,null,null,null,"",""]
[null,null,null,null,null,null,null,null,"",""]
[null,null,null,null,null,null,null,null,"",""]
[null,null,null,null,null,null,null,null,"",""]
[null,null,null,null,null,null,null,null,"",""]
[null,null,null,null,null,null,null,null,"",""]
[null,null,null,null,null,null,null,null,"",""]
[null,null,null,null,null,null,null,null,"",""]
[null,null,null,null,null,null,null,null,"",""]
[null,null,null,null,null,null,null,null,"",""]
[null,null,null,null,null,null,null,null,"",""]
[null,null,null,null,null,null,null,null,"",""]
[null,null,null,null,null,null,null,null,"",""]
[null,null,null,null,null,null,null,null,"",""]
[null,null,null,null,null,null,null,null,"",""]
[null,null,null,null,null,null,null,null,"",""]
[null,null,null,null,null,null,null,null,"",""]
[null,null,null,null,null,null,null,null,"",""]
[null,null,null,null,null,null,null,null,"",""]
[null,null,null,null,null,null,null,null,"",""]
[null,null,null,null,null,null,null,null,"",""]
[null,null,null,null,null,null,null,null,"",""]
[null,null,null,null,null,null,null,null,"",""]
[null,null,null,null,null,null,null,null,"",""]
[null,null,null,null,null,null,null,null,"",""]
[null,null,null,null,null,null,null,null,"",""]
[null,null,null,null,null,null,null,null,"",""]
[null,null,null,null,null,null,null,null,"",""]
[null,null,null,null,null,null,null,null,"",""]
[null,null,null,null,null,null,null,null,"",""]
[null,null,null,null,null,null,null,null,"",""]
[null,null,null,null,null,null,null,null,"",""]
[null,null,null,null,null,null,null,null,"",""]
[null,null,null,null,null,null,null,null,"",""]
[null,null,null,null,null,null,null,null,"",""]
[null,null,null,null,null,null,null,null,{"$f":"IF(A835=\"\",\"\",G835*H835)","v":""},{"$f":"IF(A835<>\"\",TODAY(),\"\")","v":""}]
[null,null,null,null,null,null,null,null,"",""]
[null,null,null,null,null,null,null,null,"",""]
[null,null,null,null,null,null,null,null,"",""]
[null,null,null,null,null,null,null,null,"",""]
[null,null,null,null,null,null,null,null,"",""]
[null,null,null,null,null,null,null,null,"",""]
[null,null,null,null,null,null,null,null,"",""]
[null,null,null,null,null,null,null,null,"",""]
[null,null,null,null,null,null,null,null,"",""]
[null,null,null,null,null,null,null,null,"",""]
[null,null,null,null,null,null,null,null,"",""]
[null,null,null,null,null,null,null,null,"",""]
[null,null,null,null,null,null,null,null,"",""]
[null,null,null,null,null,null,null,null,"",""]
[null,null,null,null,null,null,null,null,"",""]
[null,null,null,null,null,null,null,null,"",""]
[null,null,null,null,null,null,null,null,"",""]
[null,null,null,null,null,null,null,null,"",""]
[null,null,null,null,null,null,null,null,"",""]
[null,null,null,null,null,null,null,null,"",""]
[null,null,null,null,null,null,null,null,"",""]
[null,null,null,null,null,null,null,null,"",""]
[null,null,null,null,null,null,null,null,"",""]
[null,null,null,null,null,null,null,null,"",""]
[null,null,null,null,null,null,null,null,"",""]
[null,null,null,null,null,null,null,null,"",""]
[null,null,null,null,null,null,null,null,"",""]
[null,null,null,null,null,null,null,null,"",""]
[null,null,null,null,null,null,null,null,"",""]
[null,null,null,null,null,null,null,null,"",""]
[null,null,null,null,null,null,null,null,"",""]
[null,null,null,null,null,null,null,null,"",""]
[null,null,null,null,null,null,null,null,"",""]
[null,null,null,null,null,null,null,null,"",""]
[null,null,null,null,null,null,null,null,"",""]
[null,null,null,null,null,null,null,null,"",""]
[null,null,null,null,null,null,null,null,"",""]
[null,null,null,null,null,null,null,null,"",""]
[null,null,null,null,null,null,null,null,"",""]
[null,null,null,null,null,null,null,null,"",""]
[null,null,null,null,null,null,null,null,"",""]
[null,null,null,null,null,null,null,null,"",""]
[null,null,null,null,null,null,null,null,"",""]
[null,null,null,null,null,null,null,null,"",""]
[null,null,null,null,null,null,null,null,"",""]
[null,null,null,null,null,null,null,null,"",""]
[null,null,null,null,null,null,null,null,"",""]
[null,null,null,null,null,null,null,null,"",""]
[null,null,null,null,null,null,null,null,"",""]
[null,null,null,null,null,null,null,null,"",""]
[null,null,null,null,null,null,null,null,"",""]
[null,null,null,null,null,null,null,null,"",""]
[null,null,null,null,null,null,null,null,"",""]
[null,null,null,null,null,null,null,null,"",""]
[null,null,null,null,null,null,null,null,"",""]
[null,null,null,null,null,null,null,null,"",""]
[null,null,null,null,null,null,null,null,"",""]
[null,null,null,null,null,null,null,null,"",""]
[null,null,null,null,null,null,null,null,"",""]
[null,null,null,null,null,null,null,null,"",""]
[null,null,null,null,null,null,null,null,"",""]
[null,null,null,null,null,null,null,null,"",""]
[null,null,null,null,null,null,null,null,"",""]
[null,null,null,null,null,null,null,null,{"$f":"IF(A899=\"\",\"\",G899*H899)","v":""},{"$f":"IF(A899<>\"\",TODAY(),\"\")","v":""}]
[null,null,null,null,null,null,null,null,"",""]
[null,null,null,null,null,null,null,null,"",""]
[null,null,null,null,null,null,null,null,"",""]
[null,null,null,null,null,null,null,null,"",""]
[null,null,null,null,null,null,null,null,"",""]
[null,null,null,null,null,null,null,null,"",""]
[null,null,null,null,null,null,null,null,"",""]
[null,null,null,null,null,null,null,null,"",""]
[null,null,null,null,null,null,null,null,"",""]
[null,null,null,null,null,null,null,null,"",""]
[null,null,null,null,null,null,null,null,"",""]
[null,null,null,null,null,null,null,null,"",""]
[null,null,null,null,null,null,null,null,"",""]
[null,null,null,null,null,null,null,null,"",""]
[null,null,null,null,null,null,null,null,"",""]
[null,null,null,null,null,null,null,null,"",""]
[null,null,null,null,null,null,null,null,"",""]
[null,null,null,null,null,null,null,null,"",""]
[null,null,null,null,null,null,null,null,"",""]
[null,null,null,null,null,null,null,null,"",""]
[null,null,null,null,null,null,null,null,"",""]
[null,null,null,null,null,null,null,null,"",""]
[null,null,null,null,null,null,null,null,"",""]
[null,null,null,null,null,null,null,null,"",""]
[null,null,null,null,null,null,null,null,"",""]
[null,null,null,null,null,null,null,null,"",""]
[null,null,null,null,null,null,null,null,"",""]
[null,null,null,null,null,null,null,null,"",""]
[null,null,null,null,null,null,null,null,"",""]
[null,null,null,null,null,null,null,null,"",""]
[null,null,null,null,null,null,null,null,"",""]
[null,null,null,null,null,null,null,null,"",""]
[null,null,null,null,null,null,null,null,"",""]
[null,null,null,null,null,null,null,null,"",""]
[null,null,null,null,null,null,null,null,"",""]
[null,null,null,null,null,null,null,null,"",""]
[null,null,null,null,null,null,null,null,"",""]
[null,null,null,null,null,null,null,null,"",""]
[null,null,null,null,null,null,null,null,"",""]
[null,null,null,null,null,null,null,null,"",""]
[null,null,null,null,null,null,null,null,"",""]
[null,null,null,null,null,null,null,null,"",""]
[null,null,null,null,null,null,null,null,"",""]
[null,null,null,null,null,null,null,null,"",""]
[null,null,null,null,null,null,null,null,"",""]
[null,null,null,null,null,null,null,null,"",""]
[null,null,null,null,null,null,null,null,"",""]
[null,null,null,null,null,null,null,null,"",""]
[null,null,null,null,null,null,null,null,"",""]
[null,null,null,null,null,null,null,null,"",""]
[null,null,null,null,null,null,null,null,"",""]
[null,null,null,null,null,null,null,null,"",""]
[null,null,null,null,null,null,null,null,"",""]
[null,null,null,null,null,null,null,null,"",""]
[null,null,null,null,null,null,null,null,"",""]
[null,null,null,null,null,null,null,null,"",""]
[null,null,null,null,null,null,null,null,"",""]
[null,null,null,null,null,null,null,null,"",""]
[null,null,null,null,null,null,null,null,"",""]
[null,null,null,null,null,null,null,null,"",""]
[null,null,null,null,null,null,null,null,"",""]
[null,null,null,null,null,null,null,null,"",""]
[null,null,null,null,null,null,null,null,"",""]
[null,null,null,null,null,null,null,null,{"$f":"IF(A963=\"\",\"\",G963*H963)","v":""},{"$f":"IF(A963<>\"\",TODAY(),\"\")","v":""}]
[null,null,null,null,null,null,null,null,"",""]
[null,null,null,null,null,null,null,null,"",""]
[null,null,null,null,null,null,null,null,"",""]
[null,null,null,null,null,null,null,null,"",""]
[null,null,null,null,null,null,null,null,"",""]
[null,null,null,null,null,null,null,null,"",""]
[null,null,null,null,null,null,null,null,"",""]
[null,null,null,null,null,null,null,null,"",""]
[null,null,null,null,null,null,null,null,"",""]
[null,null,null,null,null,null,null,null,"",""]
[null,null,null,null,null,null,null,null,"",""]
[null,null,null,null,null,null,null,null,"",""]
[null,null,null,null,null,null,null,null,"",""]
[null,null,null,null,null,null,null,null,"",""]
[null,null,null,null,null,null,null,null,"",""]
[null,null,null,null,null,null,null,null,"",""]
[null,null,null,null,null,null,null,null,"",""]
[null,null,null,null,null,null,null,null,"",""]
[null,null,null,null,null,null,null,null,"",""]
[null,null,null,null,null,null,null,null,"",""]
[null,null,null,null,null,null,null,null,"",""]
[null,null,null,null,null,null,null,null,"",""]
[null,null,null,null,null,null,null,null,"",""]
[null,null,null,null,null,null,null,null,"",""]
[null,null,null,null,null,null,null,null,"",""]
[null,null,null,null,null,null,null,null,"",""]
[null,null,null,null,null,null,null,null,"",""]
[null,null,null,null,null,null,null,null,"",""]
[null,null,null,null,null,null,null,null,"",""]
[null,null,null,null,null,null,null,null,"",""]
[null,null,null,null,null,null,null,null,"",""]
[null,null,null,null,null,null,null,null,"",""]
[null,null,null,null,null,null,null,null,"",""]
[null,null,null,null,null,null,null,null,"",""]
[null,null,null,null,null,null,null,null,"",""]
[null,null,null,null,null,null,null,null,"",""]
[null,null,null,null,null,null,null,null,"",""]
[null,null,null,null,null,null,null,null,"",""]
[null,null,null,null,null,null,null,null,"",""]
[null,null,null,null,null,null,null,null,"",""]
[null,null,null,null,null,null,null,null,"",""]
[null,null,null,null,null,null,null,null,"",""]
[null,null,null,null,null,null,null,null,"",""]
[null,null,null,null,null,null,null,null,"",""]
[null,null,null,null,null,null,null,null,"",""]
[null,null,null,null,null,null,null,null,"",""]
[null,null,null,null,null,null,null,null,"",""]
[null,null,null,null,null,null,null,null,"",""]
[null,null,null,null,null,null,null,null,"",""]
[null,null,null,null,null,null,null,null,"",""]
[null,null,null,null,null,null,null,null,"",""]
[null,null,null,null,null,null,null,null,"",""]
[null,null,null,null,null,null,null,null,"",""]
[null,null,null,null,null,null,null,null,"",""]
[null,null,null,null,null,null,null,null,"",""]
[null,null,null,null,null,null,null,null,"",""]
[null,null,null,null,null,null,null,null,"",""]
[null,null,null,null,null,null,null,null,"",""]
[null,null,null,null,null,null,null,null,"",""]
[null,null,null,null,null,null,null,null,"",""]
[null,null,null,null,null,null,null,null,"",""]
[null,null,null,null,null,null,null,null,"",""]
[null,null,null,null,null,null,null,null,"",""]
[null,null,null,null,null,null,null,null,{"$f":"IF(A1027=\"\",\"\",G1027*H1027)","v":""},{"$f":"IF(A1027<>\"\",TODAY(),\"\")","v":""}]
[null,null,null,null,null,null,null,null,"",""]
[null,null,null,null,null,null,null,null,"",""]
[null,null,null,null,null,null,null,null,"",""]
[null,null,null,null,null,null,null,null,"",""]
[null,null,null,null,null,null,null,null,"",""]
[null,null,null,null,null,null,null,null,"",""]
[null,null,null,null,null,null,null,null,"",""]
[null,null,null,null,null,null,null,null,"",""]
[null,null,null,null,null,null,null,null,"",""]
[null,null,null,null,null,null,null,null,"",""]
[null,null,null,null,null,null,null,null,"",""]
[null,null,null,null,null,null,null,null,"",""]
[null,null,null,null,null,null,null,null,"",""]
[null,null,null,null,null,null,null,null,"",""]
[null,null,null,null,null,null,null,null,"",""]
[null,null,null,null,null,null,null,null,"",""]
[null,null,null,null,null,null,null,null,"",""]
[null,null,null,null,null,null,null,null,"",""]
[null,null,null,null,null,null,null,null,"",""]
[null,null,null,null,null,null,null,null,"",""]
[null,null,null,null,null,null,null,null,"",""]
[null,null,null,null,null,null,null,null,"",""]
[null,null,null,null,null,null,null,null,"",""]
[null,null,null,null,null,null,null,null,"",""]
[null,null,null,null,null,null,null,null,"",""]
[null,null,null,null,null,null,null,null,"",""]
[null,null,null,null,null,null,null,null,"",""]
[null,null,null,null,null,null,null,null,"",""]
[null,null,null,null,null,null,null,null,"",""]
[null,null,null,null,null,null,null,null,"",""]
[null,null,null,null,null,null,null,null,"",""]
[null,null,null,null,null,null,null,null,"",""]
[null,null,null,null,null,null,null,null,"",""]
[null,null,null,null,null,null,null,null,"",""]
[null,null,null,null,null,null,null,null,"",""]
[null,null,null,null,null,null,null,null,"",""]
[null,null,null,null,null,null,null,null,"",""]
[null,null,null,null,null,null,null,null,"",""]
[null,null,null,null,null,null,null,null,"",""]
[null,null,null,null,null,null,null,null,"",""]
[null,null,null,null,null,null,null,null,"",""]
[null,null,null,null,null,null,null,null,"",""]
[null,null,null,null,null,null,null,null,"",""]
[null,null,null,null,null,null,null,null,"",""]
[null,null,null,null,null,null,null,null,"",""]
[null,null,null,null,null,null,null,null,"",""]
[null,null,null,null,null,null,null,null,"",""]
[null,null,null,null,null,null,null,null,"",""]
[null,null,null,null,null,null,null,null,"",""]
[null,null,null,null,null,null,null,null,"",""]
[null,null,null,null,null,null,null,null,"",""]
[null,null,null,null,null,null,null,null,"",""]
[null,null,null,null,null,null,null,null,"",""]
[null,null,null,null,null,null,null,null,"",""]
[null,null,null,null,null,null,null,null,"",""]
[null,null,null,null,null,null,null,null,"",""]
[null,null,null,null,null,null,null,null,"",""]
[null,null,null,null,null,null,null,null,"",""]
[null,null,null,null,null,null,null,null,"",""]
[null,null,null,null,null,null,null,null,"",""]
[null,null,null,null,null,null,null,null,"",""]
[null,null,null,null,null,null,null,null,"",""]
[null,null,null,null,null,null,null,null,"",""]
[null,null,null,null,null,null,null,null,{"$f":"IF(A1091=\"\",\"\",G1091*H1091)","v":""},{"$f":"IF(A1091<>\"\",TODAY(),\"\")","v":""}]
[null,null,null,null,null,null,null,null,"",""]
[null,null,null,null,null,null,null,null,"",""]
[null,null,null,null,null,null,null,null,"",""]
[null,null,null,null,null,null,null,null,"",""]
[null,null,null,null,null,null,null,null,"",""]
[null,null,null,null,null,null,null,null,"",""]
[null,null,null,null,null,null,null,null,"",""]
[null,null,null,null,null,null,null,null,"",""]
[null,null,null,null,null,null,null,null,"",""]
[null,null,null,null,null,null,null,null,"",""]
[null,null,null,null,null,null,null,null,"",""]
[null,null,null,null,null,null,null,null,"",""]
[null,null,null,null,null,null,null,null,"",""]
[null,null,null,null,null,null,null,null,"",""]
[null,null,null,null,null,null,null,null,"",""]
[null,null,null,null,null,null,null,null,"",""]
[null,null,null,null,null,null,null,null,"",""]
[null,null,null,null,null,null,null,null,"",""]
[null,null,null,null,null,null,null,null,"",""]
[null,null,null,null,null,null,null,null,"",""]
[null,null,null,null,null,null,null,null,"",""]
[null,null,null,null,null,null,null,null,"",""]
[null,null,null,null,null,null,null,null,"",""]
[null,null,null,null,null,null,null,null,"",""]
[null,null,null,null,null,null,null,null,"",""]
[null,null,null,null,null,null,null,null,"",""]
[null,null,null,null,null,null,null,null,"",""]
[null,null,null,null,null,null,null,null,"",""]
[null,null,null,null,null,null,null,null,"",""]
[null,null,null,null,null,null,null,null,"",""]
[null,null,null,null,null,null,null,null,"",""]
[null,null,null,null,null,null,null,null,"",""]
[null,null,null,null,null,null,null,null,"",""]
[null,null,null,null,null,null,null,null,"",""]
[null,null,null,null,null,null,null,null,"",""]
[null,null,null,null,null,null,null,null,"",""]
[null,null,null,null,null,null,null,null,"",""]
[null,null,null,null,null,null,null,null,"",""]
[null,null,null,null,null,null,null,null,"",""]
[null,null,null,null,null,null,null,null,"",""]
[null,null,null,null,null,null,null,null,"",""]
[null,null,null,null,null,null,null,null,"",""]
[null,null,null,null,null,null,null,null,"",""]
[null,null,null,null,null,null,null,null,"",""]
[null,null,null,null,null,null,null,null,"",""]
[null,null,null,null,null,null,null,null,"",""]
[null,null,null,null,null,null,null,null,"",""]
[null,null,null,null,null,null,null,null,"",""]
[null,null,null,null,null,null,null,null,"",""]
[null,null,null,null,null,null,null,null,"",""]
[null,null,null,null,null,null,null,null,"",""]
[null,null,null,null,null,null,null,null,"",""]
[null,null,null,null,null,null,null,null,"",""]
[null,null,null,null,null,null,null,null,"",""]
[null,null,null,null,null,null,null,null,"",""]
[null,null,null,null,null,null,null,null,"",""]
[null,null,null,null,null,null,null,null,"",""]
[null,null,null,null,null,null,null,null,"",""]
[null,null,null,null,null,null,null,null,"",""]
[null,null,null,null,null,null,null,null,"",""]
[null,null,null,null,null,null,null,null,"",""]
[null,null,null,null,null,null,null,null,"",""]
[null,null,null,null,null,null,null,null,"",""]
[null,null,null,null,null,null,null,null,{"$f":"IF(A1155=\"\",\"\",G1155*H1155)","v":""},{"$f":"IF(A1155<>\"\",TODAY(),\"\")","v":""}]
[null,null,null,null,null,null,null,null,"",""]
[null,null,null,null,null,null,null,null,"",""]
[null,null,null,null,null,null,null,null,"",""]
[null,null,null,null,null,null,null,null,"",""]
[null,null,null,null,null,null,null,null,"",""]
[null,null,null,null,null,null,null,null,""]

{"sheet":"التجاري الزاوية","index":1,"n_rows":1,"n_cols":13,"rows_kept":1,"cut":false,"hidden":false,"merged":[]}
["رقم الشيك","اسم البنك","رقم الحساب","رقم الشيك","اسم العميل","الصنف","الكمية","السعر","الاجمالي","التاريخ","ملاحظات",{"$f":"SUM(I2:I265)","v":0},{"$f":"SUM(G2:G111)","v":0}]

{"sheet":"التجاري المصفاة","index":2,"n_rows":1,"n_cols":13,"rows_kept":1,"cut":false,"hidden":false,"merged":[]}
["رقم الشيك","اسم البنك","رقم الحساب","رقم الشيك","اسم العميل","الصنف","الكمية","السعر","الاجمالي","التاريخ","ملاحظات",{"$f":"SUM(I2:I266)","v":0},{"$f":"SUM(G2:G112)","v":0}]

{"sheet":"الصحاري","index":3,"n_rows":1,"n_cols":13,"rows_kept":1,"cut":false,"hidden":false,"merged":[]}
["رقم الشيك","اسم البنك","رقم الحساب","رقم الشيك","اسم العميل","الصنف","الكمية","السعر","الاجمالي","التاريخ","ملاحظات",{"$f":"SUM(I2:I267)","v":0},{"$f":"SUM(G2:G488)","v":0}]

{"sheet":"Setting","index":4,"n_rows":4,"n_cols":1,"rows_kept":4,"cut":false,"hidden":true,"merged":[]}
[]
["البنك التجاري الزاوية"]
["البنك التجاري المصفاة"]
["بنك الصحاري"]

{"sheet":"الجمهورية الصيرفة","index":5,"n_rows":1,"n_cols":13,"rows_kept":1,"cut":false,"hidden":false,"merged":[]}
["رقم الشيك","اسم البنك","رقم الحساب","رقم الشيك","اسم العميل","الصنف","الكمية","السعر","الاجمالي","التاريخ","ملاحظات",{"$f":"SUM(G2:G737)","v":0},{"$f":"SUM(I2:I664)","v":0}]

{"sheet":"الجمهورية الميدان","index":6,"n_rows":1,"n_cols":13,"rows_kept":1,"cut":false,"hidden":false,"merged":[]}
["رقم الشيك","اسم البنك","رقم الحساب","رقم الشيك","اسم العميل","الصنف","الكمية","السعر","الاجمالي","التاريخ","ملاحظات",{"$f":"SUM(I2:I259)","v":0},{"$f":"SUM(G2:G1265)","v":0}]

{"sheet":"الجمهورية الجامعة","index":7,"n_rows":1,"n_cols":13,"rows_kept":1,"cut":false,"hidden":false,"merged":[]}
["رقم الشيك","اسم البنك","رقم الحساب","رقم الشيك","اسم العميل","الصنف","الكمية","السعر","الاجمالي","التاريخ","ملاحظات",{"$f":"SUM(I2:I265)","v":0},{"$f":"SUM(G2:G733)","v":0}]

{"sheet":"شمال افريقيا","index":8,"n_rows":1,"n_cols":13,"rows_kept":1,"cut":false,"hidden":false,"merged":[]}
["رقم الشيك","اسم البنك","رقم الحساب","رقم الشيك","اسم العميل","الصنف","الكمية","السعر","الاجمالي","التاريخ","ملاحظات",{"$f":"SUM(I2:I267)","v":0},{"$f":"SUM(G2:G447)","v":0}]

{"sheet":"الجمهورية الحرشة","index":9,"n_rows":1,"n_cols":13,"rows_kept":1,"cut":false,"hidden":false,"merged":[]}
["رقم الشيك","اسم البنك","رقم الحساب","رقم الشيك","اسم العميل","الصنف","الكمية","السعر","الاجمالي","التاريخ","ملاحظات",{"$f":"SUM(I2:I185)","v":0},{"$f":"SUM(G2:G343)","v":0}]

{"sheet":"التجاري المطرد","index":10,"n_rows":1,"n_cols":13,"rows_kept":1,"cut":false,"hidden":false,"merged":[]}
["رقم الشيك","اسم البنك","رقم الحساب","رقم الشيك","اسم العميل","الصنف","الكمية","السعر","الاجمالي","التاريخ","ملاحظات",{"$f":"SUM(G2:G990)","v":0},{"$f":"SUM(I2:I983)","v":0}]

{"sheet":"الوحدة ابي عيسي","index":11,"n_rows":3,"n_cols":13,"rows_kept":3,"cut":false,"hidden":false,"merged":[]}
[]
[null,null,null,null,null,null,null,null,null,null,null,"$","د.ل"]
["رقم الشيك","اسم البنك","رقم الحساب","رقم الشيك","اسم العميل","الصنف","الكمية","السعر","الاجمالي","التاريخ","ملاحظات",{"$f":"SUM(G4:G793)","v":0},{"$f":"SUM(I4:I671)","v":0}]

{"sheet":"بيانات","index":12,"n_rows":20,"n_cols":5,"rows_kept":20,"cut":false,"hidden":false,"merged":[]}
[]
[]
[null,"البنوك 2",null,null,"الاصناف"]
[null,"الجمهورية الميدان",null,null,"دولار"]
[null,"الجمهورية الصيرفة",null,null,"يورو"]
[null,"الجمهورية الحرشة",null,null,"استرليني"]
[null,"الجمهورية الجامعة",null,null,"باوند"]
[null,"التجاري الزاوية",null,null,"دينار تونسي"]
[null,"التجاري المصفاة",null,null,"جنيه مصري"]
[null,"التجاري المطرد",null,null,"دينار اردني"]
[null,"الوحدة الزاوية",null,null,"درهم مغربي"]
[null,"الوحدة ابي عيسي",null,null,"درهم اماراتي"]
[null,"الصحاري",null,null,"دينار جزائري"]
[null,"شمال افريقيا",null,null,"ريال سعودي"]
[null,"الواحة"]
[null,"الامان"]
[null,"تحويل"]
[null,"بطاقة"]
[null,"التجارة والتنمية"]
[null,"المتحد للتجارة والاستثمار"]

{"sheet":"كشف حساب بنوك","index":13,"n_rows":8,"n_cols":7,"rows_kept":8,"cut":false,"hidden":false,"merged":[]}
[]
[]
[]
[null,null,"اسم البنك"]
[null,null,"الجمهورية الصيرفة"]
[]
[]
[null,"رقم الحساب","رقم الشيك","الصنف","الكمية","السعر","الاجمالي"]

{"sheet":"الوحدة الزاوية","index":14,"n_rows":4,"n_cols":13,"rows_kept":4,"cut":false,"hidden":false,"merged":[]}
[]
[]
[null,null,null,null,null,null,null,null,null,null,null,"$","د.ل"]
["رقم الشيك","اسم البنك","رقم الحساب","رقم الشيك","اسم العميل","الصنف","الكمية","السعر","الاجمالي","التاريخ","ملاحظات",{"$f":"SUM(G5:G994)","v":0},{"$f":"SUM(I5:I992)","v":0}]

{"sheet":"التجارة والتنمية","index":15,"n_rows":1,"n_cols":14,"rows_kept":1,"cut":false,"hidden":false,"merged":[]}
[null,"رقم الشيك","اسم البنك","رقم الحساب","رقم الشيك","اسم العميل","الصنف","الكمية","السعر","الاجمالي","التاريخ","ملاحظات",{"$f":"SUM(H2:H673)","v":0},{"$f":"SUM(J2:J720)","v":0}]

{"sheet":"رئيسية","index":16,"n_rows":0,"n_cols":0,"rows_kept":0,"cut":false,"hidden":false,"merged":[[1,0,25,12]]}

{"sheet":"المتحد للتجارة والاستثمار","index":17,"n_rows":3,"n_cols":13,"rows_kept":3,"cut":false,"hidden":false,"merged":[]}
[]
[null,null,null,null,null,null,null,null,null,null,null,"$","د.ل"]
["رقم الشيك","اسم البنك","رقم الحساب","رقم الشيك","اسم العميل","الصنف","الكمية","السعر","الاجمالي","التاريخ","ملاحظات",{"$f":"SUM(G4:G1063)","v":0},{"$f":"SUM(I4:I1147)","v":0}]